lending/lending_fUSD_20240806
["ID","MTS","AMOUNT","RATE_DAILY","PERIOD"]
[334289002,1722902720903,375.02,8.219e-05,2]
[334289021,1722902875668,227.63850404,8.219e-05,2]
[334289022,1722902886320,258.03838831,8.219e-05,2]
[334289023,1722902886675,1350.25078623,8.219e-05,2]
[334289029,1722903008399,1000.0,0.00025,60]
[334289030,1722903012442,1000.0,0.00025,60]
[334289037,1722903031974,-250.0,9.797e-05,2]
[334289038,1722903031984,-300.0,9.86e-05,2]
[334289039,1722903031995,-1250.0,9.861e-05,2]
[334289040,1722903032185,-451.88997619,9.861e-05,2]
[334289041,1722903037973,-999.05767994,9.861e-05,2]
[334289042,1722903038029,-298.93586434,9.861e-05,2]
[334289043,1722903038079,-427.20419193,9.861e-05,2]
[334289044,1722903038134,-660.96571054,9.861e-05,2]
[334289045,1722903038146,-678.46643896,9.861e-05,2]
[334289046,1722903038190,-617.53442811,9.861e-05,2]
[334289047,1722903038296,-3241.6375,9.861e-05,2]
[334289206,1722903040938,-8874.00820999,9.861e-05,2]
[334289207,1722903040948,-256.0,9.911e-05,2]
[334289208,1722903040957,-1221.3423,9.952e-05,2]
[334289209,1722903040968,-947.82815422,9.962e-05,2]
[334289210,1722903040978,-640.33202254,9.984e-05,2]
[334289211,1722903040987,-153.92,9.987e-05,2]
[334289212,1722903040997,-530.56,0.00010078,2]
[334289213,1722903041007,-744.0,0.00010096,2]
[334289214,1722903041017,-530.56,0.000101,2]
[334289215,1722903041026,-238.51,0.00010117,2]
[334289216,1722903041035,-530.56,0.000102,2]
[334289217,1722903041046,-530.56,0.000104,2]
[334289218,1722903041055,-530.56,0.000104,2]
[334289219,1722903041064,-530.56,0.000104,2]
[334289220,1722903041074,-530.56,0.000104,2]
[334289221,1722903041083,-150.0,0.00010468,2]
[334289222,1722903041093,-499.99,0.00010469,2]
[334289223,1722903041102,-840.55,0.00010469,2]
[334289224,1722903041112,-21794.89455012,0.00010469,2]
[334289225,1722903041121,-375.02,0.00010471,2]
[334289226,1722903041131,-147.74069797,0.00010478,2]
[334289227,1722903041147,-1571.02930203,0.00010478,2]
[334289228,1722903041156,-438.97069797,0.000105,2]
[334289229,1722903041181,-91.58930203,0.000105,2]
[334289230,1722903041190,-530.56,0.000105,2]
[334289231,1722903041200,-530.56,0.000105,2]
[334289232,1722903041209,-530.56,0.000105,2]
[334289233,1722903041219,-530.56,0.00010578,2]
[334289234,1722903041229,-1000.0,0.000107,2]
[334289235,1722903041239,-2222.92249797,0.00010722,2]
[334289236,1722903041252,-934.97531824,0.00010722,2]
[334289237,1722903041268,-467.02689727,0.00010722,2]
[334289238,1722903041280,-1594.4435325,0.00010722,2]
[334289239,1722903041292,-617.63175402,0.00010722,2]
[334289240,1722903041302,-914.22654687,0.00010722,2]
[334289241,1722903041314,-756.77345313,0.00010722,2]
[334289242,1722903041324,-289.0,0.00010722,2]
[334289243,1722903041334,-134.4495796,0.00010722,2]
[334289244,1722903041378,-1022.10555242,0.00010722,2]
[334289245,1722903041390,-273.5098,0.00010722,2]
[334289268,1722903043148,-460.35272284,0.00010722,2]
[334289274,1722903043203,-1919.52883686,0.00010722,2]
[334289276,1722903043218,-1318.05350828,0.00010722,2]
[334289278,1722903043227,-1308.19012325,0.00010722,2]
[334289305,1722903225223,366.06,8.219e-05,2]
[334289306,1722903328548,1000.0,0.00025,60]
[334289308,1722903521398,628.0,0.00025,60]
[334289310,1722903700495,640.0,0.00025,60]
[334289311,1722903739344,347.75,8.219e-05,2]
[334289316,1722903937208,5160.15,9.5e-05,2]
[334289317,1722903937233,5839.85,9.5e-05,2]
[334289338,1722904132472,-7293.539306,9.582e-05,2]
[334289343,1722904161445,912.980292,9.534e-05,2]
[334289345,1722904172435,805.16,9.552e-05,2]
[334289349,1722904232263,-295.44814184,9.582e-05,2]
[334289350,1722904232327,-310.01255216,9.582e-05,2]
[334289351,1722904232337,-250.0,9.676e-05,2]
[334289352,1722904232347,-300.0,9.719e-05,2]
[334289353,1722904232356,-300.0,9.719e-05,2]
[334289354,1722904232366,-7338.98744784,9.72e-05,2]
[334289355,1722904232378,-1192.8949193,9.72e-05,2]
[334289356,1722904232390,-3401.49763286,9.72e-05,2]
[334289357,1722904232400,-182.03,9.756e-05,2]
[334289358,1722904232409,-204.8,9.798e-05,2]
[334289359,1722904232420,-530.56,9.89e-05,2]
[334289360,1722904232429,-150.0,9.933e-05,2]
[334289361,1722904232444,-161.18,9.934e-05,2]
[334289362,1722904232454,-16905.82,9.934e-05,2]
[334289363,1722904232463,-499.99,9.934e-05,2]
[334289364,1722904232473,-886.18,9.978e-05,2]
[334289365,1722904232483,-795.2,0.00010019,2]
[334289366,1722904232492,-213.14,0.00010045,2]
[334289367,1722904232502,-660.97,0.00010078,2]
[334289368,1722904232513,-356.25,0.00010078,2]
[334289369,1722904232523,-356.25,0.00010078,2]
[334289370,1722904232533,-530.56,0.00010078,2]
[334289371,1722904232543,-150.0,0.00010219,2]
[334289372,1722904232553,-150.0,0.00010219,2]
[334289373,1722904232563,-150.0,0.00010219,2]
[334289374,1722904232573,-150.0,0.00010219,2]
[334289375,1722904232583,-150.0,0.00010219,2]
[334289376,1722904232593,-150.0,0.00010219,2]
[334289378,1722904232603,-300.0,0.00010219,2]
[334289380,1722904232612,-150.0,0.00010219,2]
[334289382,1722904232622,-150.0,0.00010219,2]
[334289384,1722904232632,-150.0,0.00010219,2]
[334289386,1722904232642,-150.0,0.00010219,2]
[334289388,1722904232652,-150.0,0.00010219,2]
[334289390,1722904232661,-150.0,0.00010219,2]
[334289392,1722904232677,-356.25,0.00010219,2]
[334289394,1722904232687,-150.0,0.00010219,2]
[334289396,1722904232701,-356.25,0.00010219,2]
[334289398,1722904232711,-150.0,0.00010219,2]
[334289399,1722904232721,-356.25,0.00010219,2]
[334289401,1722904232731,-356.25,0.00010219,2]
[334289403,1722904232741,-356.25,0.00010219,2]
[334289405,1722904232751,-356.25,0.00010219,2]
[334289407,1722904232761,-356.25,0.00010219,2]
[334289408,1722904232771,-356.25,0.00010219,2]
[334289409,1722904232780,-530.56,0.00010278,2]
[334289410,1722904232789,-530.56,0.00010378,2]
[334289411,1722904232799,-530.56,0.00010378,2]
[334289412,1722904232809,-347.75,0.00010466,2]
[334289413,1722904232819,-150.0,0.000105,2]
[334289414,1722904232829,-1093.0,0.000105,2]
[334289415,1722904232839,-420.0,0.00010691,2]
[334289416,1722904232848,-420.0,0.00010691,2]
[334289417,1722904232858,-150.0,0.000107,2]
[334289418,1722904232867,-3000.0,0.000107,2]
[334289419,1722904232876,-3000.0,0.00010722,2]
[334289420,1722904232886,-356.74,0.00010767,2]
[334289421,1722904232895,-370.51,0.00010793,2]
[334289422,1722904232904,-356.25,0.00010793,2]
[334289423,1722904232913,-356.25,0.00010793,2]
[334289424,1722904232923,-150.0,0.000108,2]
[334289425,1722904232933,-417.222,0.000108,2]
[334289426,1722904232949,-530.56,0.000108,2]
[334289427,1722904232959,-150.0,0.000108,2]
[334289428,1722904232969,-1061.12,0.000108,2]
[334289429,1722904232979,-768.5522,0.000108,2]
[334289430,1722904232989,-1497.4301,0.000108,2]
[334289431,1722904232999,-3000.0,0.0001086,2]
[334289432,1722904233009,-8039.5515,0.000109,2]
[334289433,1722904233019,-81458.2378,0.000109,2]
[334289434,1722904233029,-89794.49108612,0.000109,2]
[334289435,1722904233077,-2967.87,0.000109,2]
[334289436,1722904233229,-349.70936002,0.000109,2]
[334289437,1722904233287,-7805.33,0.000109,2]
[334289438,1722904233300,-3537.64514157,0.000109,2]
[334289439,1722904233312,-7041.0290865,0.000109,2]
[334289458,1722904238288,-9869.33592579,0.000109,2]
[334289459,1722904238298,-761.8685,0.000109,2]
[334289460,1722904238307,-356.25,0.000109,2]
[334289461,1722904238317,-150.0,0.000109,2]
[334289462,1722904238327,-530.56,0.000109,2]
[334289463,1722904238336,-150.0,0.000109,2]
[334289464,1722904238345,-278.31992446,0.000109,2]
[334289465,1722904238359,-167.4357264,0.000109,2]
[334289466,1722904238368,-500.0,0.00010912,2]
[334289467,1722904238378,-10000.0,0.00010914,2]
[334289468,1722904238387,-212.0,0.00010926,2]
[334289469,1722904238396,-3796.83366182,0.00010942,2]
[334289470,1722904238405,-200.0,0.00010959,2]
[334289471,1722904238415,-252.74,0.00010959,2]
[334289472,1722904238425,-250.0,0.00010959,2]
[334289473,1722904238435,-397.8,0.00010959,2]
[334289474,1722904238446,-1552.0,0.00010972,2]
[334289475,1722904238457,-451.0,0.00010972,2]
[334289476,1722904238466,-446.0,0.00010972,2]
[334289477,1722904238476,-810.0,0.00010972,2]
[334289478,1722904238486,-270.394,0.00010972,2]
[334289479,1722904238495,-164.752,0.00010972,2]
[334289480,1722904238505,-1893.0,0.00010972,2]
[334289481,1722904238515,-550.0,0.00010972,2]
[334289482,1722904238524,-150.917,0.00010972,2]
[334289483,1722904238537,-1158.0,0.00010972,2]
[334289484,1722904238546,-3288.0,0.00010972,2]
[334289485,1722904238555,-5837.0,0.00010972,2]
[334289486,1722904238565,-289.0,0.00010972,2]
[334289487,1722904238574,-5128.0,0.00010972,2]
[334289488,1722904238583,-1671.0,0.00010972,2]
[334289489,1722904238593,-4468.23072812,0.00010972,2]
[334289491,1722904238721,-4359.03,0.00010972,2]
[334289510,1722904240376,-326.45,0.00010972,2]
[334289511,1722904240388,-542.99403541,0.00010972,2]
[334289512,1722904240400,-277.955,0.00010972,2]
[334289513,1722904240511,-1664.7,0.00010972,2]
[334289514,1722904240523,-500.0,0.00010972,2]
[334289515,1722904240550,-300.001004,0.00010972,2]
[334289516,1722904241249,-644.08472678,0.00010972,2]
[334289517,1722904241260,-1124.02077438,0.00010972,2]
[334289521,1722904242451,-2926.4020911,0.00010972,2]
[334289522,1722904242488,-0.15174682,0.00010972,2]
[334289523,1722904242571,-1729.84999999,0.00010972,2]
[334289524,1722904242583,-2873.1298934,0.00010972,2]
[334289525,1722904242594,-1203.0,0.00010972,2]
[334289526,1722904242605,-1925.0,0.00010972,2]
[334289527,1722904242615,-765.185,0.00010972,2]
[334289528,1722904242624,-182.03,0.00010975,2]
[334289529,1722904242634,-104794.15946478,0.00010996,2]
[334289530,1722904242647,-376.955934,0.00010996,2]
[334289531,1722904242660,-312.6375,0.00010996,2]
[334289532,1722904242673,-1634.38840113,0.00010996,2]
[334289533,1722904242797,-6102.1638032,0.00010996,2]
[334289534,1722904243006,-614.32177796,0.00010996,2]
[334289536,1722904243018,-524.5952052,0.00010996,2]
[334289538,1722904243030,-1136.0456519,0.00010996,2]
[334289539,1722904243041,-75808.07699313,0.00010996,2]
[334289554,1722904243815,-831.48450349,0.00010996,2]
[334289555,1722904243863,-1599.08934919,0.00010996,2]
[334289556,1722904243875,-873.04153788,0.00010996,2]
[334289557,1722904243887,-443.07349567,0.00010996,2]
[334289558,1722904243899,-715.36994382,0.00010996,2]
[334289559,1722904243911,-5967.57370409,0.00010996,2]
[334289560,1722904243923,-1255.06367634,0.00010996,2]
[334289561,1722904243938,-650.36277005,0.00010996,2]
[334289562,1722904243974,-286.93626806,0.00010996,2]
[334289563,1722904243986,-1670.19668512,0.00010996,2]
[334289564,1722904244002,-1570.55517767,0.00010996,2]
[334289565,1722904244337,-6020.50980002,0.00010996,2]
[334289566,1722904244348,-427.18428536,0.00010996,2]
[334289567,1722904244360,-537.88,0.00010996,2]
[334289568,1722904244371,-768.44720034,0.00010996,2]
[334289569,1722904244382,-748.63230573,0.00010996,2]
[334289570,1722904244393,-2428.44655774,0.00010996,2]
[334289571,1722904244420,-3593.78666846,0.00010996,2]
[334289572,1722904244431,-931.13278959,0.00010996,2]
[334289587,1722904246542,-356.25,0.00010219,2]
[334289588,1722904246552,-150.0,0.00010219,2]
[334289589,1722904246562,-1000.0,0.000109,2]
[334289590,1722904246571,-1582.0,0.00010969,2]
[334289591,1722904246581,-5086.97445602,0.00010996,2]
[334289592,1722904246593,-3666.82998998,0.00010996,2]
[334289593,1722904246605,-3475.29170846,0.00010996,2]
[334289594,1722904246617,-1862.13435004,0.00010996,2]
[334289595,1722904246629,-506.28464956,0.00010996,2]
[334289596,1722904246641,-3284.30661633,0.00010996,2]
[334289597,1722904246652,-11102.71816032,0.00010996,2]
[334289598,1722904246668,-11753.76194839,0.00010996,2]
[334289599,1722904246679,-5571.3725772,0.00010996,2]
[334289600,1722904246700,-29345.15677151,0.00010996,2]
[334289601,1722904246712,-5143.26,0.00010996,2]
[334289602,1722904246724,-430.18684934,0.00010996,2]
[334289603,1722904246755,-1295.87497203,0.00010996,2]
[334289604,1722904246766,-5385.10398628,0.00010996,2]
[334289605,1722904246778,-581.670534,0.00010996,2]
[334289606,1722904246790,-2353.21410219,0.00010996,2]
[334289607,1722904246801,-1000.54103258,0.00010996,2]
[334289608,1722904246813,-8137.0,0.00010996,2]
[334289609,1722904246830,-4349.09017876,0.00010996,2]
[334289610,1722904246853,-30366.47161282,0.00010996,2]
[334289611,1722904246862,-330.14437916,0.00010997,2]
[334289612,1722904246871,-175.06966214,0.00010999,2]
[334289613,1722904246881,-652.46578991,0.00010999,2]
[334289614,1722904246892,-992.26795269,0.00010999,2]
[334289615,1722904246904,-2534.72608609,0.00010999,2]
[334289616,1722904246913,-2906.25576601,0.00011,2]
[334289617,1722904246924,-256.41875025,0.00011,2]
[334289618,1722904246935,-283.9727749,0.00011,2]
[334289619,1722904246947,-1554.29220342,0.00011,2]
[334289620,1722904246968,-2809.67379961,0.00011,2]
[334289621,1722904246979,-2439.94300744,0.00011,2]
[334289622,1722904247001,-473.62789852,0.00011,2]
[334289623,1722904247012,-458.27649239,0.00011,2]
[334289624,1722904247023,-945.80460736,0.00011,2]
[334289625,1722904247042,-8388.26784103,0.00011,2]
[334289626,1722904247071,-609.53823585,0.00011,2]
[334289627,1722904247083,-553.56974129,0.00011,2]
[334289628,1722904247093,-1740.74654837,0.00011,2]
[334289629,1722904247105,-447.73339314,0.00011,2]
[334289630,1722904261299,4000.0,0.00025,60]
[334289632,1722904264870,1309.46828647,9.552e-05,2]
[334289633,1722904274044,356.37,8.219e-05,2]
[334289635,1722904274905,155.0,9.552e-05,2]
[334289637,1722904352750,733.08061,0.00025,60]
[334289638,1722904358575,733.08061,0.00025,61]
[334289640,1722904368332,733.08061,0.00025,65]
[334289641,1722904373923,733.08061,0.00025,66]
[334289642,1722904377671,733.08061,0.00025,67]
[334289643,1722904383976,733.08061,0.00025,68]
[334289648,1722904391100,268.19312809,9.552e-05,2]
[334289649,1722904393322,733.08061,0.00025,72]
[334289650,1722904405637,727.08061,0.00025,73]
[334289651,1722904409592,727.08061,0.00025,74]
[334289653,1722904420953,727.08061,0.00025,75]
[334289655,1722904464957,367.08061,0.00025,79]
[334289656,1722904475717,373.08061,0.00025,80]
[334289657,1722904486798,397.08061,0.00025,81]
[334289658,1722904500983,577.08061,0.00025,82]
[334289659,1722904532366,716.08061,0.00025,86]
[334289660,1722904613333,150.0,0.00021589,30]
[334289661,1722904693317,552.6832929,0.00021589,50]
[334289664,1722904797341,552.6832929,0.00021589,50]
[334289665,1722904880782,350.58,8.219e-05,2]
[334289666,1722904892350,319.30650091,0.00021589,50]
[334289719,1722905432914,-1429.07,9.805e-05,2]
[334289720,1722905432924,-250.0,9.834e-05,2]
[334289721,1722905432933,-163.84,9.853e-05,2]
[334289722,1722905432943,-213.14,9.853e-05,2]
[334289723,1722905432954,-836.16,9.912e-05,2]
[334289724,1722905432963,-400.12580066,0.0001,4]
[334289725,1722905432973,-327.36,0.00010036,2]
[334289726,1722905432983,-300.0,0.00010099,2]
[334289727,1722905432992,-300.0,0.00010099,2]
[334289728,1722905433002,-356.25,0.000101,2]
[334289729,1722905433012,-150.0,0.000101,2]
[334289730,1722905433021,-150.0,0.000101,2]
[334289731,1722905433031,-356.25,0.000101,2]
[334289732,1722905433040,-150.0,0.000101,2]
[334289733,1722905433050,-150.0,0.000101,2]
[334289734,1722905433060,-150.0,0.000101,2]
[334289735,1722905433069,-150.0,0.000101,2]
[334289736,1722905433079,-356.25,0.000101,2]
[334289737,1722905433088,-248.23,0.000101,2]
[334289738,1722905433099,-150.0,0.0001011,2]
[334289739,1722905433108,-356.25,0.000102,2]
[334289740,1722905433118,-356.25,0.000103,2]
[334289741,1722905433128,-356.25,0.000103,2]
[334289742,1722905433138,-356.25,0.000103,2]
[334289743,1722905433148,-356.25,0.000103,2]
[334289744,1722905433158,-356.25,0.000103,2]
[334289745,1722905433168,-356.25,0.000103,2]
[334289746,1722905433178,-356.25,0.000103,2]
[334289747,1722905433188,-356.25,0.000103,2]
[334289748,1722905433198,-356.25,0.000103,2]
[334289750,1722905433208,-356.25,0.000103,2]
[334289751,1722905433219,-356.25,0.000103,2]
[334289752,1722905433229,-356.25,0.000103,2]
[334289753,1722905433239,-300.0,0.000103,3]
[334289755,1722905433248,-150.0,0.000104,2]
[334289757,1722905433258,-150.0,0.000104,2]
[334289759,1722905433268,-709.43,0.000104,2]
[334289762,1722905433278,-356.25,0.000104,2]
[334289763,1722905433288,-356.25,0.000104,2]
[334289764,1722905433298,-356.25,0.000104,2]
[334289765,1722905433307,-700.0,0.000104,3]
[334289766,1722905433317,-350.58,0.00010468,2]
[334289767,1722905433327,-22503.07,0.000105,2]
[334289768,1722905433336,-499.99,0.000105,2]
[334289769,1722905433346,-1000.0,0.000105,3]
[334289770,1722905433355,-1400.0,0.000106,3]
[334289771,1722905433365,-967.2436,0.000107,2]
[334289772,1722905433375,-739.7983,0.000107,2]
[334289773,1722905433386,-2500.0,0.000107,2]
[334289774,1722905433395,-1800.0,0.000107,3]
[334289775,1722905433405,-500.0,0.000108,2]
[334289776,1722905433414,-618.3264,0.000108,2]
[334289777,1722905433423,-45846.5134,0.000108,2]
[334289778,1722905433432,-109370.54994371,0.000108,2]
[334289779,1722905433532,-4900.0,0.000108,2]
[334289780,1722905433612,-3546.95296747,0.000108,2]
[334289781,1722905433624,-5964.4146465,0.000108,2]
[334289782,1722905433644,-2028.09834232,0.000108,2]
[334289783,1722905433653,-300.0,0.000108,3]
[334289784,1722905433663,-635.6682,0.000109,2]
[334289785,1722905433672,-36.23345768,0.000109,2]
[334289793,1722905438346,-182.03,9.732e-05,2]
[334289794,1722905438356,-563.6091265,0.000109,2]
[334289807,1722905440762,-400.15741582,0.000109,2]
[334289808,1722905440772,-441.6466,0.000109,2]
[334289809,1722905440782,-300.0,0.000109,3]
[334289810,1722905440792,-500.0,0.00010912,2]
[334289811,1722905440802,-200.0,0.00010959,2]
[334289812,1722905440812,-250.0,0.00010959,2]
[334289813,1722905440822,-1273.408,0.00010972,2]
[334289814,1722905440833,-1925.0,0.00010972,2]
[334289815,1722905440842,-289.28798418,0.00010972,2]
[334289816,1722905440945,-332.71201582,0.00010972,2]
[334289817,1722905440954,-416.6932292,0.00010972,2]
[334289818,1722905440965,-839.04,0.00010972,2]
[334289819,1722905440977,-326.2667708,0.00010972,2]
[334289820,1722905440987,-1552.0,0.00010972,2]
[334289821,1722905440996,-404.79179439,0.00010972,2]
[334289822,1722905441007,-41.20820561,0.00010972,2]
[334289823,1722905441017,-373.89179439,0.00010972,2]
[334289824,1722905441032,-436.10820561,0.00010972,2]
[334289825,1722905441042,-150.0,0.00010972,2]
[334289826,1722905441051,-451.0,0.00010972,2]
[334289827,1722905441060,-150.0,0.00010972,2]
[334289828,1722905441070,-1893.0,0.00010972,2]
[334289829,1722905441079,-550.0,0.00010972,2]
[334289830,1722905441089,-3288.0,0.00010972,2]
[334289831,1722905441098,-150.0,0.00010972,2]
[334289833,1722905441107,-514.99593305,0.00010972,2]
[334289857,1722905443697,-643.00406695,0.00010972,2]
[334289858,1722905443708,-64.38573465,0.00010972,2]
[334289859,1722905443720,-224.61426535,0.00010972,2]
[334289860,1722905443730,-150.0,0.00010972,2]
[334289861,1722905443739,-56.0394096,0.00010972,2]
[334289866,1722905444642,-1146.9605904,0.00010972,2]
[334289867,1722905444652,-241.86022231,0.00010972,2]
[334289868,1722905447161,-2044.12880369,0.000107,2]
[334289880,1722905523302,338.37,8.531e-05,2]
[334289882,1722905599769,14352.67880533,8.531e-05,2]
[334289883,1722905607918,1309.26665883,8.531e-05,2]
[334289885,1722905696210,14352.67880533,8.531e-05,2]
[334289887,1722905779890,1000.0,0.00025,60]
[334289888,1722905780390,1000.0,0.00025,60]
[334289889,1722905780816,1000.0,0.00025,60]
[334289890,1722905781255,1000.0,0.00025,60]
[334289891,1722905781691,1000.0,0.00025,60]
[334289892,1722905782149,1000.0,0.00025,60]
[334289893,1722905783458,1000.0,0.00025,60]
[334289894,1722905783847,1000.0,0.00025,60]
[334289895,1722905784019,1000.0,0.00025,60]
[334289896,1722905784132,1000.0,0.00025,60]
[334289897,1722905790269,194.17491858,0.00025,60]
[334289899,1722906074809,362.72,8.219e-05,2]
[334289931,1722906548079,1415.19,0.00013,30]
[334289936,1722906564321,500.0,0.00025,60]
[334289940,1722906629381,500.0,0.00025,60]
[334289986,1722906631602,-331.07,9.968e-05,2]
[334289989,1722906631612,-94.23016265,0.00010014,2]
[334289992,1722906631626,-205.76983735,0.00010014,2]
[334289994,1722906631636,-23900.0,0.00010015,2]
[334289997,1722906631646,-668.93,0.0001004,2]
[334289999,1722906631656,-250.0,0.00010058,2]
[334290001,1722906631666,-261.88,0.00010101,2]
[334290003,1722906631676,-264.3297815,0.0001034,2]
[334290005,1722906631686,-155.0,0.0001034,2]
[334290006,1722906631696,-11583.75534861,0.0001034,2]
[334290008,1722906631706,-11583.75534861,0.0001034,2]
[334290009,1722906631715,-362.72,0.0001048,2]
[334290010,1722906631725,-13560.4585,0.00010599,2]
[334290011,1722906631735,-150.99,0.000106,2]
[334290012,1722906631744,-499.99,0.000106,2]
[334290013,1722906631754,-2348.02,0.000106,2]
[334290014,1722906631763,-1656.7912,0.000106,2]
[334290015,1722906631773,-3288.0,0.00010694,2]
[334290016,1722906631783,-1158.0,0.00010694,2]
[334290017,1722906631792,-150.0,0.00010694,2]
[334290018,1722906631802,-1075.0,0.00010694,2]
[334290019,1722906631812,-289.0,0.00010694,2]
[334290020,1722906631822,-5128.0,0.00010694,2]
[334290021,1722906631831,-5837.0,0.00010694,2]
[334290022,1722906631841,-1203.0,0.00010694,2]
[334290023,1722906631851,-16792.56,0.00010694,2]
[334290024,1722906631860,-1671.0,0.00010694,2]
[334290025,1722906631870,-4743.1513,0.000107,2]
[334290026,1722906631888,-44766.7653,0.000107,2]
[334290027,1722906631897,-273.388,0.000107,2]
[334290028,1722906631907,-605.7804,0.000107,2]
[334290029,1722906631917,-713.4457,0.000107,2]
[334290030,1722906631927,-282.7298,0.000107,2]
[334290031,1722906631937,-150.0,0.000107,2]
[334290032,1722906631949,-264.02,0.00010898,2]
[334290033,1722906631959,-1000.0,0.000109,2]
[334290034,1722906631969,-5721.2252,0.000109,2]
[334290036,1722906631981,-7505.4195,0.000109,2]
[334290038,1722906631991,-1126.3398,0.000109,2]
[334290040,1722906632001,-166.63340527,0.000109,2]
[334290042,1722906632011,-4932.063,0.000109,2]
[334290044,1722906632023,-169.84462217,0.000109,2]
[334290046,1722906632033,-202.3894396,0.000109,2]
[334290048,1722906632043,-185.5466163,0.000109,2]
[334290050,1722906632053,-500.0,0.00010912,2]
[334290052,1722906632063,-200.0,0.00010959,2]
[334290054,1722906632073,-250.0,0.00010959,2]
[334290056,1722906632083,-560.26,0.00010959,2]
[334290057,1722906632093,-3000.0,0.00010972,2]
[334290058,1722906632102,-215.0,0.00010972,2]
[334290059,1722906632112,-150.0,0.00010972,2]
[334290060,1722906632121,-216.0,0.00010972,2]
[334290061,1722906632134,-265.538,0.00010972,2]
[334290062,1722906632143,-209.076,0.00010972,2]
[334290063,1722906632152,-163.0,0.00010972,2]
[334290064,1722906632162,-163.539,0.00010972,2]
[334290065,1722906632171,-156.085,0.00010972,2]
[334290066,1722906632180,-150.291,0.00010972,2]
[334290067,1722906632190,-248.196,0.00010972,2]
[334290068,1722906632199,-249.834,0.00010972,2]
[334290069,1722906632209,-250.0,0.00010972,2]
[334290070,1722906632219,-260.527,0.00010972,2]
[334290071,1722906632229,-200.671,0.00010972,2]
[334290072,1722906632239,-169.808,0.00010972,2]
[334290073,1722906632248,-622.0,0.00010972,2]
[334290075,1722906632257,-1582.0,0.00010972,2]
[334290077,1722906632267,-1256.0,0.00010972,2]
[334290079,1722906632276,-1925.0,0.00010972,2]
[334290081,1722906632286,-150.0,0.00010972,2]
[334290083,1722906632296,-810.0,0.00010972,2]
[334290085,1722906632305,-446.0,0.00010972,2]
[334290087,1722906632315,-1552.0,0.00010972,2]
[334290089,1722906632324,-451.0,0.00010972,2]
[334290091,1722906632334,-1893.0,0.00010972,2]
[334290093,1722906632343,-550.0,0.00010972,2]
[334290095,1722906632353,-150.0,0.00010972,2]
[334290097,1722906632363,-86869.10276393,0.00010998,2]
[334290100,1722906632382,-1075.9549519,0.00010998,2]
[334290102,1722906632395,-1517.42729465,0.00010998,2]
[334290105,1722906632406,-3955.96712328,0.00010998,2]
[334290107,1722906632420,-3494.76952503,0.00010998,2]
[334290109,1722906632432,-16824.05464997,0.00010998,2]
[334290112,1722906632443,-421.55839924,0.00010998,2]
[334290114,1722906632455,-553.91232696,0.00010998,2]
[334290116,1722906632466,-19207.54554323,0.00010998,2]
[334290117,1722906632478,-351.96,0.00010998,2]
[334290118,1722906632502,-268.07010932,0.00010998,2]
[334290119,1722906632514,-1378.29577402,0.00010998,2]
[334290120,1722906632526,-277.50880542,0.00010998,2]
[334290121,1722906632538,-1230.78807392,0.00010998,2]
[334290122,1722906632550,-939.82724979,0.00010998,2]
[334290123,1722906632562,-1879.8522855,0.00010998,2]